Cogmind - Beta 12 @@@ ROGUE MODE // 2023.11.11 @ 10:32:23 Player: Enzo Result: Destroyed by as-59030 with Assembled Blade Performance ------------- Evolutions (0) 0 Regions Visited (2) 400 Robots Destroyed (22) 110 Value Destroyed (483) 483 Prototype IDs (0) 0 Alien Tech Used (0) 0 Bonus (8) 8 TOTAL SCORE: 1001 Bonus ------- High Alert Combat Kills 8 Cogmind --------- Core Integrity 0/250 Matter 270/300 Energy 160/160 System Corruption 0% Temperature Cool (0) Movement Treading (160) Location -10/Mines Parts ------- > --- POWER (1) -------- Light Nuclear Core > --- PROPULSION (2) --- Light Treads Light Treads > --- UTILITY (2) ------ Large Storage Unit Advanced Targeting Computer > --- WEAPON (2) ------- Minigun Grenade Launcher > --- INVENTORY (15) --- Medium Storage Unit Structural Scanner Machine Analyzer Improved Terrain Scanner Improved Terrain Scanner Improved Propulsion Shielding Particle Cannon Particle Cannon Particle Cannon Light Cannon Grenade Launcher Rocket Launcher Rocket Launcher Improved Datajack Mining Laser Peak State ------------ > --- POWER ------------ Light Nuclear Core > --- PROPULSION ------- Light Treads Light Treads > --- UTILITY ---------- Large Storage Unit Advanced Targeting Computer > --- WEAPON ----------- Minigun Light Cannon > --- INVENTORY -------- Medium Storage Unit Structural Scanner Improved Terrain Scanner Improved Terrain Scanner Improved Propulsion Shielding Hacking Suite Particle Cannon Particle Cannon Particle Cannon Grenade Launcher Grenade Launcher Rocket Launcher Rocket Launcher Improved Datajack Mining Laser [Rating: 16] Favorites ----------- Power Ion Engine Engine Ion Engine Power Core Light Nuclear Core Propulsion Light Treads Treads Light Treads Utility Improved Targeting Computer Device Improved Terrain Scanner Storage Large Storage Unit Processor Improved Targeting Computer Weapon Particle Cannon Energy Gun EM Pulse Gun Energy Cannon Particle Cannon Ballistic Gun Minigun Ballistic Cannon Light Cannon Launcher Rocket Launcher Build | -11 -10 -10 ------- Run | Jun Mat Min Slots Evolved . | . . . Power . | . . . Propulsion . | . . . Utility . | . . . Weapon . | . . . Parts Attached 30 | 7 18 5 Power 5 | 1 2 2 Engine 4 | 1 2 1 Core 1 | . . 1 Reactor . | . . . Propulsion 2 | 2 . . Treads 2 | 2 . . Leg . | . . . Wheel . | . . . Hover . | . . . Flight . | . . . Utility 6 | 2 3 1 Device 1 | 1 . . Storage 3 | 1 2 . Processor 2 | . 1 1 Hackware . | . . . Protection . | . . . Artifact . | . . . Weapon 17 | 2 13 2 Energy Gun 2 | 1 1 . Energy Cannon 6 | . 6 . Ballistic Gun 2 | 1 . 1 Ballistic Cannon 2 | . 2 . Launcher 5 | . 4 1 Special Weapon . | . . . Impact Weapon . | . . . Slashing Weapon . | . . . Piercing Weapon . | . . . Special Melee Weapon . | . . . Unidentified Prototypes . | . . . Parts Lost . | . . . Power . | . . . Propulsion . | . . . Utility . | . . . Weapon . | . . . Highest Loss Streak . | . . . To Critical Strikes . | . . . Average Slot Usage (%) 100 | . 100 100 Engine 12 | . 14 8 Core 1 | . . 5 Treads 28 | . 28 28 Storage 14 | . 14 14 Processor 13 | . 13 14 Energy Cannon 14 | . 17 8 Ballistic Gun 1 | . . 5 Ballistic Cannon 9 | . 7 13 Launcher 1 | . 1 . Naked Turns . | . . . Heaviest Build 32 | 12 32 32 Greatest Support 40 | 40 40 40 Greatest Overweight (x) . | . . . Average Overweight (x) . | . . . Largest Inventory Capacity 15 | 8 15 15 Average Capacity 11 | 7 9 15 Most Carried 15 | 4 13 15 Average Carried 9 | 1 9 13 Final Capacity 15 | 8 15 15 Final Carried 15 | 4 13 15 Class Distribution -------------------- 100% | Mutant Dominant Class ---------------- Mutant | -10/Materials Mutant | -10/Mines Resources | -11 -10 -10 ----------- Run | Jun Mat Min Matter Collected 594 | 279 251 64 Remotely . | . . . Salvage Created 682 | 86 494 102 Parts 48 | 6 41 1 Haulers Intercepted 1 | . 1 . Recyclers Shooed . | . . . Parts Field Recycled . | . . . Retrieved Matter . | . . . Parts Self-Destructed . | . . . Prevented . | . . . Kills | -11 -10 -10 ------- Run | Jun Mat Min Combat Hostiles Destroyed 14 | . 10 4 Guns 3 | . 3 . Cannons 5 | . 3 2 AOE 6 | . 4 2 Classes Destroyed 9 | 2 6 1 Worker 1 | . 1 . Tunneler 2 | 2 . . Hauler 1 | . 1 . Recycler 2 | 1 1 . Operator 1 | . 1 . Watcher 3 | . 3 . Swarmer 6 | . 6 . Grunt 6 | . 4 2 Assembled 2 | . . 2 Best Kill Streak 6 | 2 6 2 Combat Bots Only 5 | . 5 2 Max Kills in Single Turn 2 | 1 2 1 Gunslinging . | . . . Exploded 1 | . 1 1 Melee . | . . . Uniques/NPCs Destroyed . | . . . Combat | -11 -10 -10 -------- Run | Jun Mat Min Damage Taken 830 | . 504 326 Core 266 | . 150 116 Absorbed by Shields . | . . . Core Remaining (%) 100 | 100 . . Volleys Fired 58 | 9 41 8 Largest 2 | 2 2 2 Hottest 136 | 60 136 103 Shots Fired 90 | 11 65 14 Gun 20 | 11 9 . Cannon 63 | . 51 12 Launcher 7 | . 5 2 Special . | . . . Kinetic 19 | 9 4 6 Thermal 53 | . 47 6 Explosive 7 | . 5 2 Electromagnetic 11 | 2 9 . Robot Hit Streak 7 | 3 5 7 Robot Miss Streak 4 | 1 4 2 Penetration Max . | . . . Secondary Targets . | . . . Shots Hit Robots 51 | 8 35 8 Core Hits 38 | 2 26 10 Critical Kills . | . . . Critical Parts Destroyed . | . . . Critical Strikes 2 | . 1 1 Blast 1 | . . 1 Corrupt 1 | . 1 . Melee Attacks . | . . . Impact . | . . . Slashing . | . . . Piercing . | . . . Sneak Attacks . | . . . Combat Hostiles . | . . . Follow-up Attacks . | . . . Damage Inflicted 1669 | 129 1133 407 Guns 152 | 85 67 . Cannons 714 | . 568 146 Explosions 801 | 44 498 259 Melee . | . . . Ramming 2 | . . 2 Kinetic 137 | 57 16 64 Thermal 678 | 44 552 82 Explosive 625 | . 366 259 Electromagnetic 227 | 28 199 . Impact . | . . . Slashing . | . . . Piercing . | . . . Highest Corruption . | . . . Average Corruption . | . . . Corruption Purged . | . . . Corruption Blocked . | . . . Overload Shots . | . . . Overflow Damage 75 | 19 56 . Projectiles 12 | . 12 . Explosions 63 | 19 44 . Melee . | . . . Knockbacks 2 | . . 2 Impact . | . . . Kinetic 2 | . . 2 Secondary . | . . . Self-Inflicted Damage 73 | . 1 72 Shots 3 | . 1 2 Rammed 1 | . . 1 Targets Rammed 1 | . . 1 Kicked . | . . . Crushed . | . . . Highest Temperature 321 | 10 321 301 Average Temperature 113 | 7 107 158 Received Heat Transfer 159 | . 75 84 Effects 1 | . 1 . Interference 1 | . 1 . Siege Activations . | . . . Robots Corrupted . | . . . Combat Hostiles . | . . . Parts Fried . | . . . Impact Corruptions . | . . . Robots Melted . | . . . Combat Hostiles . | . . . Parts Melted 3 | . 3 . Heat Transferred 1197 | 50 999 148 Parts Sabotaged . | . . . Parts Stolen . | . . . Parts Stripped . | . . . Power Chain Reactions 1 | 1 . . Missiles Intercepted . | . . . Alert | -11 -10 -10 ------- Run | Jun Mat Min Peak Influence 480 | 15 480 119 Initial 69 | . 9 69 Average 180 | 7 242 95 Maximum Alert Level 2 | . 2 . Low Security (%) 63 | 100 42 100 Level 1 26 | . 42 . Level 2 9 | . 15 . Level 3 . | . . . Level 4 . | . . . Level 5 . | . . . High Security . | . . . Max Security . | . . . Squads Dispatched 2 | . 1 1 Investigation 1 | . . 1 Extermination . | . . . Reinforcement 1 | . 1 . Assault . | . . . Garrison . | . . . Intercept . | . . . Searches Triggered . | . . . Construction Impeded . | . . . Haulers Reinforced . | . . . Active Scanning Responses . | . . . Cargo Convoy Interrupts . | . . . Stealth | -11 -10 -10 --------- Run | Jun Mat Min Distress Signals 1 | . 1 . Communications Jammed . | . . . Distress Signals . | . . . Times Spotted 28 | . 20 8 Peak Tracking Total 6 | . 6 6 Tactical Retreats 1 | . 1 . Traps | -11 -10 -10 ------- Run | Jun Mat Min Traps Triggered . | . . . Indirectly . | . . . Trap Hack Attempts . | . . . Triggered . | . . . Disarmed . | . . . Reprogrammed . | . . . Reused . | . . . Traps Extracted . | . . . Installed . | . . . Triggered 1 | . . 1 Machines | -11 -10 -10 ---------- Run | Jun Mat Min Machines Disabled 10 | . 10 . Max in Single Turn 4 | . 4 . Machines Repaired . | . . . Machines Sabotaged . | . . . Overloaded Fab Kills . | . . . Hacking | -11 -10 -10 --------- Run | Jun Mat Min Machines Accessed 4 | . 3 1 Terminals 3 | . 3 . Fabricators . | . . . Repair Stations . | . . . Recycling Units . | . . . Scanalyzers . | . . . Garrison Access . | . . . Total Hacks 8 | . 7 1 Successful 2 | . 1 1 Failed 6 | . 6 . Catastrophic 3 | . 3 . Database Lockouts . | . . . Manual 2 | . 2 . Terminals 7 | . 7 . Fabricators . | . . . Repair Stations . | . . . Recycling Units . | . . . Scanalyzers . | . . . Garrison Access . | . . . Terminal Hacks 2 | . 1 1 Open Door 1 | . . 1 Alert Level 1 | . 1 . Fabricator Hacks . | . . . Repair Station Hacks . | . . . Recycling Unit Hacks . | . . . Scanalyzer . | . . . Garrison Access Hacks . | . . . Unauthorized Hacks . | . . . Terminals . | . . . Fabricators . | . . . Repair Stations . | . . . Recycling Units . | . . . Scanalyzers . | . . . Garrison Access . | . . . Data Cores Recovered . | . . . Used . | . . . Hacking Detections 3 | . 3 . Full Trace Events . | . . . Feedback Events . | . . . Feedback Blocked . | . . . Robot Schematics Acquired . | . . . Robots Built . | . . . Authchips . | . . . Time . | . . . Total Robot Build Rating . | . . . Part Schematics Acquired . | . . . Parts Built . | . . . Authchips . | . . . Time . | . . . Total Part Build Rating . | . . . Parts Repaired . | . . . Time . | . . . Parts Recycled . | . . . Recycled Matter . | . . . Retrieved Matter . | . . . Retrieved Components . | . . . Parts Scanalyzed . | . . . Part Schematics Acquired . | . . . Parts Damaged . | . . . Bothacking | -11 -10 -10 ------------ Run | Jun Mat Min Used RIF Installer . | . . . Robots Hacked . | . . . Non-combat . | . . . Combat . | . . . Robot Hacks Applied . | . . . Relay Couplers Released . | . . . Fabnet Peak Effective % . | . . . Robots Rewired . | . . . Allies Hacked . | . . . Hacks Repelled . | . . . Allies | -11 -10 -10 -------- Run | Jun Mat Min Total Allies . | . . . Largest Group . | . . . Highest-Rated Group . | . . . Highest-Rated Ally . | . . . Total Orders . | . . . Ally Attacks . | . . . Total Damage . | . . . Kills . | . . . Allies Corrupted . | . . . Allies Melted . | . . . Intel | -11 -10 -10 ------- Run | Jun Mat Min Robot Analysis Total . | . . . Derelict Logs Recovered . | . . . Drone Launches . | . . . Drone Recoveries . | . . . Exploration | -11 -10 -10 ------------- Run | Jun Mat Min Turns Passed 1663 | 133 1046 484 Spaces Moved 866 | 59 535 272 Core 3 | 3 . . Treads 863 | 56 535 272 Legs . | . . . Wheels . | . . . Hover . | . . . Flight . | . . . Fastest Speed 50 | 50 160 160 Average Speed 159 | 154 160 160 Slowest Speed 160 | 160 160 160 Overloaded Moves . | . . . Propulsion Burnouts . | . . . Robots Hopped . | . . . Cave-ins Triggered . | . . . Exploration Rate (%) 35 | 5 48 53 Regions Visited 2 Branch Regions 1 Pre-discovered Areas . | . . . Known Exits Taken . | . . . Unknown Exits Taken 2 | 1 1 . Scrap Searched 2 | . . 2 Spaces Dug 7 | . 7 . Terrain Destroyed 46 | . 30 16 Melee . | . . . Projectile 2 | . 2 . AOE 44 | . 28 16 Terrain Rammed . | . . . Walls Destroyed . | . . . Machines Disabled . | . . . Actions | -11 -10 -10 --------- Run | Jun Mat Min Total 1055 | 89 660 306 Wait 62 | 9 41 12 Move 864 | 58 534 272 Hop . | . . . Pick Up 21 | 5 12 4 Fast Attach 14 | 7 6 1 Attach . | . . . Detach 2 | . 2 . Swap 16 | . 12 4 Drop 17 | 1 12 4 Fire 58 | 9 41 8 Melee . | . . . Ram . | . . . Kick . | . . . Crush 1 | . . 1 Escape Stasis . | . . . Rewire . | . . . Trap . | . . . Miscellaneous . | . . . Route ------- -11/Junkyard -10/Materials (discovered 2 exits: [*Mat] / *Min) -10/Mines History --------- Turn | Location | Event 11 | -11/Junkyard | Discovered new exit (range 15) 134 | -11/Junkyard | Entered Materials 317 | -10/Materials | Build established: Mutant 498 | -10/Materials | Core integrity fell below 50% 612 | -10/Materials | Discovered new exit (range 15) 911 | -10/Materials | Discovered new exit (range 15) 1180 | -10/Materials | Entered Mines 1224 | -10/Mines | Met a Derelict bent on vengeance 1451 | -10/Mines | Met a Derelict shopkeep closing up shop 1614 | -10/Mines | Assembled infested the area 1619 | -10/Mines | Assisted by a Guerilla fighting off Assembled 1662 | -10/Mines | Core integrity fell below 20% 1664 | -10/Mines | Destroyed by as-59030 with Assembled Blade Last Messages --------------- 01465_ Acquired Lgt. Nuclear Core. 01470_ Acquired Imp. Propulsion Shielding. 01476_ Acquired Imp. Datajack. 01477_ Dropped EM Pulse Gun. 01479_ Acquired Minigun. 01484_ Dropped Hacking Suite. 01486_ Acquired Machine Analyzer. 01511_ Acquired 5 matter. 01523_ Acquired 24 matter. 01524_ Acquired 1 matter. 01575_ Searching scrap... 01575_ Found 38 Matter. 01575_ Found 12 Matter. 01614_ ALERT: Infestation in the mines, dispatching Demolisher response squad. 01619_ A derelict emerges from the shadows: "You need to get out of here! I've been tracking a group of Assembled to figure out where they're coming from, and they're closing on this area, come on!" 01661_ as-36985 destroyed. 01663_ as-89813 destroyed. Map ----- +----------------------------------------------------+ | ????# %##????????? ????????????????????????????? | | ???## ##???????? ????????????????????????????? | | ??## #????????# #????????????????????????????? | | ### #????????# #????????????????????????????? | | # [ #????????# #????????????????????????????? | | *%=##??####### #####????????????????????????? | | ##???# %% #???####?????????????????? | | #????# ######### #???# #??####???????????? | | ##???# #???????# #??## #### ##??????????? | | ##??# #???????# #??# ## #??????????? | | ## #### #???????# #??# #??????????? | | ### #???????# #??# ###??????????? | | #?## #######??????## ##?## ##????????????? | | #######???????????## ##?## ##?????????????? | | ###?????????##### #### ##??????????????? | | ##?????#### k ## #???????????????? | | ###### t ##???????????????? | | ## #????????????????? | | ### ##????????????????? | | #?#### ## ## ##?????????????????? | | ?????# #####?## ##??????????????????? | | ###### ##?????# ##???????????????????? | | # #?????# ##????????????????????? | | #?????## # #???####?????????????? | | ##?????# #??## ##????????????? | | ##??#### @ #??# ##???????????? | | #### ## aaa #??# ##??????????? | | # ## a #??# #??????????? | | # ## #?# ### #?????? | | # #### % ##?# #?????? | | #??## #### #?????? | | #???######## #########?????? | | ##??????????#### #### #?????????????? | | # #??????????????## ##??# #??????######## | | ## #???????????????## ##???# ######## | | ##????????????????#####????#%%=*%% | | ###??????????????????????????########## | | #####?????????????????????????????????????# | | ??????????????????????????????????????????######## | | ?????????????????????????????????????????????????? | | ?????????????????????????????????????????????????? | | ?????????????????????????????????????????????????? | | ?????????????????????????????????????????????????? | | ?????????????????????????????????????????????????? | | ?????????????????????????????????????????????????? | | | | | | | | | | | +----------------------------------------------------+ Best States ------------- Heat Dissipation 25 Energy Generation 14 Energy Capacity 250 Matter Stores 300 Matter Capacity 300 Sight Range 16 Terrain Scan Range 16 Terrain Scan Density 10 Evasion (%) 40 Targeting Accuracy 8 Recoil Reduction 2 Item Schematics ----------------- None Robot Schematics ------------------ None Fabricated ------------ Nothing Alien Tech Used ----------------- None Achievements -------------- None Challenges ------------ None Game ------ Seed TargetHelicalStorm Manual? 0 Play Time 00:17:10 Cumulative 65.0 hours Start 2023.11.11 @ 10:18:31 End 2023.11.11 @ 10:32:23 Sessions 1 Manual Loads 0 Difficulty Rogue Special Mode None Game No. 137 Rogue 137 Adventurer 0 Explorer 0 Win Type - Total 0 Types 0/0/0/0/0/0/0/0/0 Lore% 41 Gallery% 44 Achievement% 38 Wizard Run 0 Options --------- ASCII 0 Keyboard 0 Movement Numpad Keybinds 0 Fullscreen 2 Font 24/Smallcaps Map View 76x50 Tactical HUD 1 Map Filters NONE Filters NONE Steam 1 RUN: 0b9bf980-a84b-46f2-8eaf-4df39df56632